Cogmind - Beta 12 @@@ ROGUE MODE // 2023.04.05 @ 20:35:29 Player: deadnoob Result: Destroyed by G-47 Trooper with Particle Gun Performance ------------- Evolutions (2) 1000 Regions Visited (6) 1200 Robots Destroyed (59) 295 Value Destroyed (1710) 1710 Prototype IDs (28) 560 Alien Tech Used (0) 0 Bonus (300) 300 TOTAL SCORE: 5065 Bonus ------- High Alert Combat Kills 66 Follower Combat Kills 46 Aligned with FarCom 300 Friendly Fire -112 Cogmind --------- Core Integrity 0/550 Matter 153/300 Energy 89/100 System Corruption 3% Temperature Warm (142) Movement Flying (40) Location -8/Storage Parts ------- > --- POWER (1) -------- (None) > --- PROPULSION (4) --- Improved Flight Unit > --- UTILITY (4) ------ (None) > --- WEAPON (2) ------- (None) > --- INVENTORY (5) ---- Reflective Plating Graphene Brace Guided Missile Launcher Peak State ------------ > --- POWER ------------ Improved Deuterium Engine > --- PROPULSION ------- Light Treads Armored Treads Armored Treads Armored Treads > --- UTILITY ---------- Huge Storage Unit Advanced Targeting Computer Heavy Armor Plating > --- WEAPON ----------- Guided Missile Launcher > --- INVENTORY -------- Improved Deuterium Engine Armored Treads Armored Treads Improved Flight Unit Improved Flight Unit Improved Flight Unit Improved Flight Unit Improved Flight Unit Experimental Sensor Array Transmission Jammer Reflective Plating Reflective Plating Reflective Plating Graphene Brace Shield Generator Hacking Suite Enhanced Autogun Enhanced Autogun Enhanced Autogun Enhanced Autogun Flak Gun Flak Gun Assault Cannon Missile Launcher [Rating: 42] Favorites ----------- Power Improved Deuterium Engine Engine Improved Deuterium Engine Propulsion Light Treads Treads Light Treads Leg Aluminum Leg Flight Unit Improved Flight Unit Utility Huge Storage Unit Device Improved Heat Sink Storage Huge Storage Unit Processor Advanced Targeting Computer Protection Heavy Armor Plating Weapon Enhanced Autogun Energy Gun Heavy Laser Ballistic Gun Enhanced Autogun Ballistic Cannon Assault Cannon Launcher Missile Launcher Impact Weapon Maul Build | -11 -10 -10 -10 -9 -8 -8 ------- Run | Jun Mat Min Exi Min Mat Sto Slots Evolved 4 | . . . . . 4 . Power . | . . . . . . . Propulsion 2 | . . . . . 2 . Utility 2 | . . . . . 2 . Weapon . | . . . . . . . Parts Attached 54 | 1 . 5 . 4 34 10 Power 4 | . . . . 2 1 1 Engine 4 | . . . . 2 1 1 Core . | . . . . . . . Reactor . | . . . . . . . Propulsion 17 | . . 1 . 2 13 1 Treads 14 | . . . . 2 12 . Leg 1 | . . 1 . . . . Wheel . | . . . . . . . Hover . | . . . . . . . Flight 2 | . . . . . 1 1 Utility 12 | . . 4 . . 7 1 Device 6 | . . 4 . . 2 . Storage 1 | . . . . . 1 . Processor 3 | . . . . . 3 . Hackware . | . . . . . . . Protection 2 | . . . . . 1 1 Artifact . | . . . . . . . Weapon 21 | 1 . . . . 13 7 Energy Gun 7 | 1 . . . . 6 . Energy Cannon . | . . . . . . . Ballistic Gun 5 | . . . . . 3 2 Ballistic Cannon 1 | . . . . . 1 . Launcher 5 | . . . . . 3 2 Special Weapon . | . . . . . . . Impact Weapon 3 | . . . . . . 3 Slashing Weapon . | . . . . . . . Piercing Weapon . | . . . . . . . Special Melee Weapon . | . . . . . . . Unidentified Prototypes 5 | . . 1 . . 3 1 Parts Lost 10 | . . . . . 7 3 Power . | . . . . . . . Propulsion 2 | . . . . . 1 1 Utility 5 | . . . . . 3 2 Weapon 3 | . . . . . 3 . Highest Loss Streak 5 | . . . . . 5 2 To Critical Strikes . | . . . . . . . Average Slot Usage (%) 96 | . 85 95 100 100 99 90 Engine 10 | . 14 14 14 14 9 8 Treads 25 | . . . . 26 35 35 Leg 7 | . 28 28 28 1 . . Device 6 | . . 10 14 14 7 . Storage 10 | . 14 14 14 14 9 8 Processor 9 | . . . . . 18 10 Protection 3 | . . . . . 1 8 Energy Gun 15 | . 28 28 28 28 14 . Ballistic Gun 4 | . . . . . 2 12 Impact Weapon 1 | . . . . . . 4 Naked Turns . | . . . . . . . Heaviest Build 111 | 13 13 14 14 16 100 111 Greatest Support 80 | 20 20 25 25 40 80 80 Greatest Overweight (x) 1 | . . . . . 1 1 Average Overweight (x) . | . . . . . . . Largest Inventory Capacity 25 | 8 8 8 8 8 25 25 Average Capacity 18 | 8 8 8 8 8 23 24 Most Carried 25 | 6 4 8 8 8 25 25 Average Carried 16 | 5 3 6 7 7 21 24 Final Capacity 25 | 8 8 8 8 8 25 5 Final Carried 25 | 3 4 8 7 8 25 4 Class Distribution -------------------- 97% | Mutant Dominant Class ---------------- Mutant | -10/Materials Mutant | -10/Mines Mutant | -10/Exiles Mutant | -9/Mines Mutant | -8/Materials Mutant | -8/Storage Resources | -11 -10 -10 -10 -9 -8 -8 ----------- Run | Jun Mat Min Exi Min Mat Sto Matter Collected 1250 | 192 18 50 . 40 348 602 Remotely . | . . . . . . . Salvage Created 2070 | . 20 87 . . 996 967 Parts 128 | . 4 3 . 1 62 58 Haulers Intercepted 4 | . . . . . 4 . Recyclers Shooed 2 | . . 1 . . . 1 Parts Field Recycled . | . . . . . . . Retrieved Matter . | . . . . . . . Parts Self-Destructed . | . . . . . . . Prevented . | . . . . . . . Kills | -11 -10 -10 -10 -9 -8 -8 ------- Run | Jun Mat Min Exi Min Mat Sto Combat Hostiles Destroyed 39 | . . 2 . . 17 20 Guns 22 | . . 2 . . 7 13 Cannons 1 | . . . . . 1 . AOE 15 | . . . . . 8 7 Classes Destroyed 13 | . 1 2 . 1 6 3 Worker 4 | . . . . 1 3 . Builder 2 | . . . . . . 2 Tunneler 1 | . . . . . 1 . Hauler 4 | . . . . . 4 . Recycler 2 | . . . . . . 2 Mechanic 1 | . . . . . . 1 Operator 2 | . 1 . . . 1 . Watcher 3 | . . . . . 2 1 Swarmer 9 | . . 2 . . 3 4 Grunt 19 | . . . . . 8 11 Duelist 1 | . . . . . 1 . Sentry 9 | . . . . . 4 5 Heavy 1 | . . . . . 1 . Thug 1 | . . 1 . . . . Best Kill Streak 7 | . 1 2 . 1 6 7 Combat Bots Only 7 | . . 2 . . 4 7 Max Kills in Single Turn 3 | . 1 1 . 1 3 3 Gunslinging . | . . . . . . . Exploded 3 | . . . . . 3 3 Melee . | . . . . . . . Uniques/NPCs Destroyed . | . . . . . . . Combat | -11 -10 -10 -10 -9 -8 -8 -------- Run | Jun Mat Min Exi Min Mat Sto Damage Taken 2975 | . 26 73 . 18 1705 1153 Core 569 | . . 7 . . 384 178 Absorbed by Shields 13 | . . . . . 13 . Core Remaining (%) 98 | 100 . . . 97 . . Volleys Fired 124 | . 2 6 2 . 53 61 Largest 2 | . 2 2 1 . 2 2 Hottest 138 | . 90 90 50 . 138 50 Shots Fired 232 | . 4 12 2 . 99 115 Gun 215 | . 4 12 2 . 86 111 Cannon 6 | . . . . . 6 . Launcher 11 | . . . . . 7 4 Special . | . . . . . . . Kinetic 123 | . . . . . 12 111 Thermal 98 | . 4 12 2 . 80 . Explosive 11 | . . . . . 7 4 Electromagnetic . | . . . . . . . Robot Hit Streak 12 | . 4 5 . . 7 12 Robot Miss Streak 3 | . . 3 . . 3 3 Penetration Max . | . . . . . . . Secondary Targets 3 | . . 1 . . 1 1 Max Gunslinging Chain 1 | . . 1 . . 1 1 Shots Hit Robots 168 | . 4 6 . . 71 87 Core Hits 101 | . 2 3 . . 43 53 Critical Kills 1 | . . . . . . 1 Critical Parts Destroyed 2 | . . . . . . 2 Critical Strikes 8 | . . 1 . . 4 3 Burn 5 | . . 1 . . 4 . Destroy 2 | . . . . . . 2 Smash 1 | . . . . . . 1 Melee Attacks 21 | . . . . . . 21 Impact 21 | . . . . . . 21 Slashing . | . . . . . . . Piercing . | . . . . . . . Sneak Attacks 2 | . . . . . . 2 Combat Hostiles . | . . . . . . . Follow-up Attacks . | . . . . . . . Damage Inflicted 5018 | . 45 105 . 9 2221 2638 Guns 2697 | . 45 101 . . 1141 1410 Cannons 87 | . . . . . 87 . Explosions 2008 | . . . . . 986 1022 Melee 187 | . . . . . . 187 Ramming 39 | . . 4 . 9 7 19 Kinetic 1549 | . . . . . 139 1410 Thermal 1235 | . 45 101 . . 1089 . Explosive 2008 | . . . . . 986 1022 Electromagnetic . | . . . . . . . Impact 187 | . . . . . . 187 Slashing . | . . . . . . . Piercing . | . . . . . . . Highest Corruption 3 | . . . . . 1 3 Average Corruption 1 | . . . . . 1 2 Corruption Purged . | . . . . . . . Corruption Blocked . | . . . . . . . Effects 23 | . . . . . 9 14 Message Errors 7 | . . . . . 4 3 Matter Fused 4 | . . . . . 2 2 Heat Flow Errors 7 | . . . . . 1 6 Energy Discharges 1 | . . . . . . 1 Data Loss (minor) 2 | . . . . . 2 . Misfires 1 | . . . . . . 1 Alerts 1 | . . . . . . 1 Overload Shots . | . . . . . . . Overflow Damage 170 | . . . . . 37 133 Projectiles 13 | . . . . . 13 . Explosions 75 | . . . . . 24 51 Melee 82 | . . . . . . 82 Knockbacks 2 | . . . . 1 . 1 Impact 2 | . . . . 1 . 1 Kinetic . | . . . . . . . Secondary . | . . . . . . . Self-Inflicted Damage 195 | . . . . . 89 106 Shots 5 | . . . . . 3 2 Rammed 6 | . . . . 1 1 4 Targets Rammed 9 | . . 1 . 2 2 4 Kicked 1 | . . 1 . . . . Crushed 2 | . . . . 1 1 . Highest Temperature 432 | . 60 180 . . 432 264 Average Temperature 93 | . 31 96 . . 133 60 Received Heat Transfer 1008 | . . . . . 522 486 Effects 6 | . . . . . 6 . Shutdowns 1 | . . . . . 1 . Interference 3 | . . . . . 3 . Matter Decay 2 | . . . . . 2 . Siege Activations . | . . . . . . . Robots Corrupted . | . . . . . . . Combat Hostiles . | . . . . . . . Parts Fried . | . . . . . . . Impact Corruptions 2 | . . . . . . 2 Robots Melted 1 | . . . . . 1 . Combat Hostiles 1 | . . . . . 1 . Parts Melted 14 | . . 3 . . 11 . Heat Transferred 2926 | . 124 334 . . 2468 . Parts Sabotaged . | . . . . . . . Parts Stolen . | . . . . . . . Parts Stripped . | . . . . . . . Power Chain Reactions . | . . . . . . . Missiles Intercepted . | . . . . . . . Alert | -11 -10 -10 -10 -9 -8 -8 ------- Run | Jun Mat Min Exi Min Mat Sto Peak Influence 494 | . 41 89 . 22 284 494 Initial 119 | . . 15 . . . 119 Average 133 | . 23 28 . 12 107 271 Maximum Alert Level 2 | . . . . . 1 2 Low Security (%) 70 | 100 100 100 . 100 80 29 Level 1 24 | . . . . . 19 52 Level 2 5 | . . . . . . 17 Level 3 . | . . . . . . . Level 4 . | . . . . . . . Level 5 . | . . . . . . . High Security . | . . . . . . . Max Security . | . . . . . . . Squads Dispatched 7 | . 1 . . . 1 5 Investigation 2 | . . . . . . 2 Extermination . | . . . . . . . Reinforcement 4 | . 1 . . . 1 2 Assault . | . . . . . . . Garrison 1 | . . . . . . 1 Intercept . | . . . . . . . Searches Triggered . | . . . . . . . Construction Impeded . | . . . . . . . Haulers Reinforced . | . . . . . . . Active Scanning Responses . | . . . . . . . Cargo Convoy Interrupts . | . . . . . . . Stealth | -11 -10 -10 -10 -9 -8 -8 --------- Run | Jun Mat Min Exi Min Mat Sto Distress Signals 7 | . 1 . . . 5 1 Communications Jammed . | . . . . . . . Distress Signals . | . . . . . . . Times Spotted 76 | . 9 3 . 1 27 36 Peak Tracking Total 14 | . 7 3 9 2 6 14 Tactical Retreats 1 | . . . . . 1 . Traps | -11 -10 -10 -10 -9 -8 -8 ------- Run | Jun Mat Min Exi Min Mat Sto Traps Triggered 2 | . . . . . 1 1 Indirectly . | . . . . . . . Trap Hack Attempts . | . . . . . . . Triggered . | . . . . . . . Disarmed . | . . . . . . . Reprogrammed . | . . . . . . . Reused . | . . . . . . . Traps Extracted . | . . . . . . . Installed . | . . . . . . . Triggered . | . . . . . . . Machines | -11 -10 -10 -10 -9 -8 -8 ---------- Run | Jun Mat Min Exi Min Mat Sto Machines Disabled 6 | . . . 1 . 1 4 Max in Single Turn 1 | . . . 1 . 1 1 Machines Repaired . | . . . . . . . Machines Sabotaged . | . . . . . . . Overloaded Fab Kills . | . . . . . . . Hacking | -11 -10 -10 -10 -9 -8 -8 --------- Run | Jun Mat Min Exi Min Mat Sto Machines Accessed 14 | . 1 . 2 . 4 7 Terminals 10 | . 1 . . . 3 6 Fabricators . | . . . . . . . Repair Stations . | . . . . . . . Recycling Units . | . . . . . . . Scanalyzers 1 | . . . . . 1 . Garrison Access 1 | . . . . . . 1 Total Hacks 35 | . 2 . 2 . 13 18 Successful 17 | . 1 . 2 . 6 8 Failed 18 | . 1 . . . 7 10 Catastrophic 5 | . . . . . 3 2 Database Lockouts . | . . . . . . . Manual 23 | . 2 . 2 . 10 9 Terminals 29 | . 2 . . . 11 16 Fabricators . | . . . . . . . Repair Stations . | . . . . . . . Recycling Units . | . . . . . . . Scanalyzers 2 | . . . . . 2 . Garrison Access 2 | . . . . . . 2 Terminal Hacks 12 | . 1 . 2 . 2 7 Record 1 | . . . 1 . . . Robot Analysis 1 | . 1 . . . . . Open Door 2 | . . . . . . 2 Branch Access Points 1 | . . . . . 1 . Terminal Index 1 | . . . . . . 1 Alert Level 2 | . . . . . . 2 Unreport Threat 1 | . . . . . 1 . Locate Traps 1 | . . . . . . 1 Zone Layout 1 | . . . . . . 1 EX-Prototype ID Bank 1 | . . . 1 . . . Fabricator Hacks . | . . . . . . . Repair Station Hacks . | . . . . . . . Recycling Unit Hacks . | . . . . . . . Scanalyzer 2 | . . . . . 2 . Insert Component 1 | . . . . . 1 . Analyze 1 | . . . . . 1 . Garrison Access Hacks . | . . . . . . . Unauthorized Hacks 3 | . . . . . 2 1 Terminals 3 | . . . . . 2 1 Track 1 | . . . . . 1 . Botnet 2 | . . . . . 1 1 Fabricators . | . . . . . . . Repair Stations . | . . . . . . . Recycling Units . | . . . . . . . Scanalyzers . | . . . . . . . Garrison Access . | . . . . . . . Data Cores Recovered . | . . . . . . . Used . | . . . . . . . Hacking Detections 10 | . 1 . . . 4 5 Full Trace Events 4 | . . . . . 1 3 Feedback Events . | . . . . . . . Feedback Blocked . | . . . . . . . Robot Schematics Acquired . | . . . . . . . Robots Built . | . . . . . . . Authchips . | . . . . . . . Time . | . . . . . . . Total Robot Build Rating . | . . . . . . . Part Schematics Acquired 1 | . . . . . 1 . Parts Built . | . . . . . . . Authchips . | . . . . . . . Time . | . . . . . . . Total Part Build Rating . | . . . . . . . Parts Repaired . | . . . . . . . Time . | . . . . . . . Parts Recycled . | . . . . . . . Recycled Matter . | . . . . . . . Retrieved Matter . | . . . . . . . Retrieved Components . | . . . . . . . Parts Scanalyzed 1 | . . . . . 1 . Part Schematics Acquired 1 | . . . . . 1 . Parts Damaged . | . . . . . . . Bothacking | -11 -10 -10 -10 -9 -8 -8 ------------ Run | Jun Mat Min Exi Min Mat Sto Used RIF Installer . | . . . . . . . Robots Hacked . | . . . . . . . Non-combat . | . . . . . . . Combat . | . . . . . . . Robot Hacks Applied . | . . . . . . . Relay Couplers Released . | . . . . . . . Fabnet Peak Effective % . | . . . . . . . Robots Rewired . | . . . . . . . Allies Hacked . | . . . . . . . Hacks Repelled . | . . . . . . . Allies | -11 -10 -10 -10 -9 -8 -8 -------- Run | Jun Mat Min Exi Min Mat Sto Total Allies 5 | . . 2 . 3 . . Largest Group 3 | . . 2 . 3 . . Highest-Rated Group 42 | . . 42 . 40 . . Highest-Rated Ally 31 | . . 31 . 16 . . Total Orders 1 | . . . . 1 . . STAY 1 | . . . . 1 . . Ally Attacks 12 | . . 3 . 9 . . Total Damage 116 | . . 22 . 94 . . Kills 2 | . . 1 . 1 . . Allies Corrupted . | . . . . . . . Allies Melted . | . . . . . . . Intel | -11 -10 -10 -10 -9 -8 -8 ------- Run | Jun Mat Min Exi Min Mat Sto Robot Analysis Total 1 | . 1 . . . . . Derelict Logs Recovered 2 | . . 2 . . . . Drone Launches . | . . . . . . . Drone Recoveries . | . . . . . . . Exploration | -11 -10 -10 -10 -9 -8 -8 ------------- Run | Jun Mat Min Exi Min Mat Sto Turns Passed 3200 | 4 61 436 300 351 1142 906 Spaces Moved 1496 | 1 46 338 246 214 378 273 Core . | . . . . . . . Treads 846 | . . . . 197 378 271 Legs 648 | 1 46 338 246 17 . . Wheels . | . . . . . . . Hover . | . . . . . . . Flight 2 | . . . . . . 2 Fastest Speed 40 | 120 120 120 120 120 160 40 Average Speed 176 | 120 120 120 120 156 233 245 Slowest Speed 247 | 120 120 120 120 160 247 247 Overloaded Moves . | . . . . . . . Propulsion Burnouts . | . . . . . . . Robots Hopped 1 | . . . . . . 1 Cave-ins Triggered . | . . . . . . . Exploration Rate (%) 41 | 2 19 75 62 40 34 57 Regions Visited 6 Branch Regions 4 Pre-discovered Areas 3 | . . 2 1 . . . Known Exits Taken 1 | . . . . . 1 . Unknown Exits Taken 5 | 1 1 1 1 1 . . Scrap Searched 2 | . . 1 . 1 . . Spaces Dug 10 | . . . . . . 10 Terrain Destroyed 82 | . . . . . 55 27 Melee 10 | . . . . . . 10 Projectile 1 | . . . . . 1 . AOE 71 | . . . . . 54 17 Terrain Rammed . | . . . . . . . Walls Destroyed . | . . . . . . . Machines Disabled . | . . . . . . . Actions | -11 -10 -10 -10 -9 -8 -8 --------- Run | Jun Mat Min Exi Min Mat Sto Total 1818 | 4 48 355 250 229 541 391 Wait 31 | . . 1 . . 20 10 Move 1489 | . 45 337 245 214 377 271 Hop 1 | . . . . . . 1 Pick Up 44 | . 1 2 1 5 31 4 Fast Attach 16 | . . 3 . 1 10 2 Attach 13 | . . . . . 10 3 Detach 12 | . . 2 . . 7 3 Swap 25 | 1 . 2 . 3 14 5 Drop 34 | 3 . 1 2 5 17 6 Fire 124 | . 2 6 2 . 53 61 Melee 21 | . . . . . . 21 Ram . | . . . . . . . Kick 1 | . . 1 . . . . Crush 7 | . . . . 1 2 4 Escape Stasis . | . . . . . . . Rewire . | . . . . . . . Trap . | . . . . . . . Miscellaneous . | . . . . . . . Route ------- -11/Junkyard -10/Materials -10/Mines (discovered 2 exits: [*Mat] / *Exi) -10/Exiles -9/Mines (discovered 2 exits: *Mat x2) -8/Materials (discovered 2 exits: *Sto x2) -8/Storage History --------- Turn | Location | Event 5 | -11/Junkyard | Discovered new exit (range 0) 5 | -11/Junkyard | Entered Materials 51 | -10/Materials | Discovered new exit (range 13) 66 | -10/Materials | Entered Mines 112 | -10/Mines | Discovered new exit (range 9) 161 | -10/Mines | Learned Materials security intel 168 | -10/Mines | Learned location of Mines (-9) 296 | -10/Mines | Learned location of Storage (-8) 314 | -10/Mines | Build established: Mutant 357 | -10/Mines | Found a damaged Exp. Sensor Array with a note attached 360 | -10/Mines | Found Prototype Device 360 | -10/Mines | Identified Exp. Sensor Array 496 | -10/Mines | Deemed a non-threat by the Exiles lab entrance 497 | -10/Mines | Discovered new exit (range 5) 502 | -10/Mines | Entered Exiles 531 | -10/Exiles | Met 8R-AWN 553 | -10/Exiles | Met EX-HEX 597 | -10/Exiles | Met EX-DEC 606 | -10/Exiles | Learned location of Zion (-6) 626 | -10/Exiles | Met EX-BIN 643 | -10/Exiles | Aligned with FarCom system 644 | -10/Exiles | Given EX-Vault access code 673 | -10/Exiles | Opened EX-Vault 707 | -10/Exiles | Warned to stay clear of 0b10 Research branches 777 | -10/Exiles | Attacked by the Exiles 793 | -10/Exiles | Discovered new exit (range 10) 802 | -10/Exiles | Entered Mines 819 | -9/Mines | Joined a pair of Derelicts in attacking an 0b10 outpost 942 | -9/Mines | Assisted by bots powering up and referring to "LRC-V3" 955 | -9/Mines | Discovered new exit (range 12) 1063 | -9/Mines | Assembled infested the area 1068 | -9/Mines | Assisted by a Guerilla fighting off Assembled 1132 | -9/Mines | Discovered new exit (range 13) 1153 | -9/Mines | Entered Materials 1153 | -8/Materials | Evolved 4 slots: Propulsion x2, Utility x2 1227 | -8/Materials | Identified exit to Storage 2051 | -8/Materials | Core integrity fell below 50% 2106 | -8/Materials | Lost 5 parts (1n2u2w) 2295 | -8/Materials | Entered Storage 2415 | -8/Storage | Core integrity fell below 20% 2614 | -8/Storage | Found Prototype Launcher 2614 | -8/Storage | Identified Gui. Missile Launcher 3192 | -8/Storage | Garrison activated, responded to threat 3199 | -8/Storage | Released all parts (8) 3201 | -8/Storage | Destroyed by G-47 Trooper with Particle Gun Last Messages --------------- 03192_ G-47 Trooper destroyed. 03192_ ALERT: Activating Garrison Access S001. 03192_ Destroyed Imp. Hover Unit. 03192_ G-47 Trooper destroyed. 03193_ Lgt. Treads destroyed. 03193_ Critical hit (Burn: +37). 03195_ G-47 Trooper destroyed. 03197_ Destroyed Unknown Power Core. 03197_ G-47 Trooper destroyed. 03197_ Y-45 Defender destroyed. 03198_ The unstable cave ceiling collapses. 03198_ 38 Matter crushed. 03198_ Hvy. Armor Plating destroyed. 03199_ Released Maul. 03199_ Released Imp. Deuterium Engine. 03199_ Released Arm. Treads. 03199_ Released Adv. Targeting Computer. 03199_ Released Huge Storage Unit. 03199_ Released Arm. Treads. 03199_ Released Missile Launcher. Map ----- +----------------------------------------------------+ | # ###??# ######??????????????????? | | +#####+########## #### ##??????????????????????? | | = # #???# # #??????????????????????? | | """ # #??## # #??????????????????????? | | "" # #??## + T #??????????????????????? | | ="" # #??## "" # #??????????????????????? | | [ " # ##### """# #??????????????????????? | | """ +% + """#######??????????????????????? | | =** #^^^^^# """#????????????????????????????? | | =!![#^ # """#????????????????????????????? | | ###### + #????????????????????????????? | | ?????# ##########????????????????????????????? | | ?????# ######????????????????????????????????? | | ?????# #????????????????????????????????? | | ???? + #????????###?????????????????????? | | ??"" # ##????#### ###???????????????????? | | ?"""?# ##########???# #???????????????????? | | ?""??# ##???###"##??# ! #???????????????????? | | ?????# T#??##"T"##### #???????????????????? | | ?????# ##??# # !! #???????????????????? | | ?????# ?????# """ #[ !! #???????????????????? | | ?????# ??####![ R"=!!=!! #???????????????????? | | ?????# ??#"""![ """[==!![ #???????????????????? | | ?????# ???#"G Y [!*b=![""#???????????????????? | | ?????/ ???#""" """ =*%g! ""#???????????????????? | | ?????##???#### """ g]==Y@ T"#???????????????????? | | ?????????????# """ %* =% ""#???????????????????? | | ?????????????# Y ! " #??????????????????? | | ?????????????#####+### Y%[ ##??????????????????? | | ???????????????? ?#g # #???????????????????? | | ??????????????? ? u ! ???????????????????? | | ?????????????? ??? %= ??????????????????? | | ????????????? ??? ?????????????????? | | ????????????###??? ### # ### ????????????????? | | ?????????????????####??#T ###??##+???????????????? | | ???????????????????????##"#??????????????????????? | | ?????????????????????????????????????????????????? | | ?????????????????????????????????????????????????? | | ?????????????????????????????????????????????????? | | ?????????????????????????????????????????????????? | | ?????????????????????????????????????????????????? | | ?????????????????????????????????????????????????? | | ?????????????????????????????????????????????????? | | ?????????????????????????????????????????????????? | | ?????????????????????????????????????????????????? | | ?????????????????????????????????????????????????? | | ?????????????????????????????????????????????????? | | ?????????????????????????????????????????????????? | | ?????????????????????????????????????????????????? | | ?????????????????????????????????????????????????? | +----------------------------------------------------+ Best States ------------- Heat Dissipation 45 Energy Generation 16 Energy Capacity 290 Matter Stores 300 Matter Capacity 300 Sight Range 16 Robot Scan Range 14 Terrain Scan Density 10 Armor Coverage 600 Evasion (%) 55 Targeting Accuracy 8 Recoil Reduction 4 Salvage Targeting 1 Item Schematics ----------------- Hacking Suite | -8/Materials | Scanalyzed Robot Schematics ------------------ None Fabricated ------------ Nothing Alien Tech Used ----------------- None Achievements -------------- None Challenges ------------ None Game ------ Seed DisruptionPhysicsSuite Manual? 0 Play Time 00:20:23 Cumulative 206.6 hours Start 2023.04.05 @ 20:14:55 End 2023.04.05 @ 20:35:29 Sessions 1 Manual Loads 0 Difficulty Rogue Special Mode None Game No. 291 Rogue 291 Adventurer 0 Explorer 0 Win Type - Total 7 Types 6/0/0/1/0/0/0/0/0 Lore% 82 Gallery% 85 Achievement% 68 Wizard Run 0 Options --------- ASCII 0 Keyboard 0 Movement Numpad Keybinds 0 Fullscreen 2 Font 18/SmallcapsGlow Map View 76x50 Tactical HUD 1 Map Filters NONE Filters NONE Steam 1 RUN: b50b4752-14ee-4ab2-914b-301a1afbabfd